[Event "GrandPrix_30.05"]
[Site "Chess.com"]
[Date "2020.05.30"]
[Round "5"]
[White "jacky72"]
[Black "Sam_ChessMood"]
[Result "0-1"]
[WhiteElo "2313"]
[BlackElo "2560"]
[TimeControl "600+2"]
[EndTime "10:30:05 PDT"]
[Termination "Sam_ChessMood won by checkmate"]

1. d4 {[%clk 0:10:01.9]} 1... Nf6 {[%clk 0:10:00]} 2. c4 {[%clk 0:10:03.4]} 2...
e6 {[%clk 0:10:00.9]} 3. Nf3 {[%clk 0:10:04.6]} 3... d5 {[%clk 0:10:01]} 4. Nc3
{[%clk 0:10:05.2]} 4... Be7 {[%clk 0:10:01.6]} 5. Bg5 {[%clk 0:09:59.7]} 5... h6
{[%clk 0:09:41.1]} 6. Bh4 {[%clk 0:09:58.2]} 6... dxc4 {[%clk 0:09:36.4]} 7. e3
{[%clk 0:09:50]} 7... c5 {[%clk 0:09:17]} 8. Bxc4 {[%clk 0:09:40.6]} 8... cxd4
{[%clk 0:09:15.1]} 9. Nxd4 {[%clk 0:09:37.4]} 9... O-O {[%clk 0:09:14]} 10. O-O
{[%clk 0:09:34.7]} 10... Bd7 {[%clk 0:09:15.2]} 11. Qb3 {[%clk 0:09:16]} 11...
Nc6 {[%clk 0:09:05.2]} 12. Nxc6 {[%clk 0:07:37.4]} 12... Bxc6 {[%clk 0:09:07.1]}
13. Rfd1 {[%clk 0:07:36.5]} 13... Qa5 {[%clk 0:09:02.9]} 14. Bb5 {[%clk
0:07:36.6]} 14... Bxb5 {[%clk 0:08:30.3]} 15. Qxb5 {[%clk 0:07:26.7]} 15... Qxb5
{[%clk 0:07:51]} 16. Nxb5 {[%clk 0:07:28.6]} 16... a6 {[%clk 0:07:46.8]} 17. Nc3
{[%clk 0:07:21]} 17... Rfc8 {[%clk 0:07:11.2]} 18. Rac1 {[%clk 0:07:07.5]} 18...
Rc4 {[%clk 0:06:59]} 19. Bg3 {[%clk 0:07:02]} 19... Rac8 {[%clk 0:06:58.1]} 20.
Ra1 {[%clk 0:06:36.5]} 20... b5 {[%clk 0:06:25.8]} 21. a3 {[%clk 0:06:33.9]}
21... Ne8 {[%clk 0:05:38.2]} 22. Be5 {[%clk 0:06:19.2]} 22... f6 {[%clk
0:05:26.8]} 23. Bg3 {[%clk 0:06:10.1]} 23... Kf8 {[%clk 0:04:52.2]} 24. Kf1
{[%clk 0:06:04.8]} 24... e5 {[%clk 0:04:50.7]} 25. Rd2 {[%clk 0:05:55.6]} 25...
Kf7 {[%clk 0:04:22.7]} 26. Ke2 {[%clk 0:05:43.4]} 26... Ke6 {[%clk 0:04:22.5]}
27. f4 {[%clk 0:05:30.2]} 27... exf4 {[%clk 0:04:11]} 28. Bxf4 {[%clk 0:05:22]}
28... Nd6 {[%clk 0:03:56.7]} 29. Rad1 {[%clk 0:04:55.7]} 29... Ne4 {[%clk
0:03:50.9]} 30. Nxe4 {[%clk 0:04:53.9]} 30... Rxe4 {[%clk 0:03:52.8]} 31. Bd6
{[%clk 0:04:48.2]} 31... Kf7 {[%clk 0:03:22.1]} 32. Bxe7 {[%clk 0:04:34.5]}
32... Rxe7 {[%clk 0:03:23]} 33. Rd6 {[%clk 0:04:31.6]} 33... Re6 {[%clk
0:03:21.5]} 34. Rd7+ {[%clk 0:04:04.3]} 34... Kg6 {[%clk 0:03:19.9]} 35. R1d4
{[%clk 0:04:04.9]} 35... h5 {[%clk 0:03:17.3]} 36. Kf3 {[%clk 0:03:49.2]} 36...
Rce8 {[%clk 0:03:05.1]} 37. Rd3 {[%clk 0:03:40.8]} 37... Re5 {[%clk 0:02:54.9]}
38. R7d6 {[%clk 0:03:35.1]} 38... a5 {[%clk 0:02:52.9]} 39. R6d5 {[%clk
0:03:35.6]} 39... Kg5 {[%clk 0:02:34.1]} 40. b4 {[%clk 0:03:31.6]} 40... axb4
{[%clk 0:02:30.1]} 41. axb4 {[%clk 0:03:31.2]} 41... g6 {[%clk 0:02:30]} 42.
Rxe5+ {[%clk 0:02:55.3]} 42... Rxe5 {[%clk 0:02:29.1]} 43. Rd6 {[%clk
0:02:56.3]} 43... h4 {[%clk 0:02:05.5]} 44. Rb6 {[%clk 0:02:53.2]} 44... Rf5+
{[%clk 0:01:36.9]} 45. Ke2 {[%clk 0:02:48.7]} 45... Re5 {[%clk 0:01:34.5]} 46.
Kf3 {[%clk 0:02:44.8]} 46... Rf5+ {[%clk 0:01:35.4]} 47. Ke2 {[%clk 0:02:39.6]}
47... Re5 {[%clk 0:01:36.5]} 48. Rc6 {[%clk 0:02:26.1]} 48... f5 {[%clk
0:01:16.9]} 49. Rc3 {[%clk 0:01:41.9]} 49... Re4 {[%clk 0:01:16.6]} 50. Rb3
{[%clk 0:01:42.9]} 50... Rc4 {[%clk 0:01:15.6]} 51. Rb2 {[%clk 0:01:40.6]} 51...
Kf6 {[%clk 0:01:15.1]} 52. Kf3 {[%clk 0:01:41.1]} 52... Ke5 {[%clk 0:01:14.6]}
53. Rb1 {[%clk 0:01:31.8]} 53... g5 {[%clk 0:01:15]} 54. Rb2 {[%clk 0:01:26.5]}
54... g4+ {[%clk 0:01:05.5]} 55. Kf2 {[%clk 0:01:25.5]} 55... Ke4 {[%clk
0:01:04]} 56. Rb3 {[%clk 0:00:42.1]} 56... Rc2+ {[%clk 0:01:04.7]} 57. Kf1
{[%clk 0:00:42.9]} 57... h3 {[%clk 0:01:04.4]} 58. gxh3 {[%clk 0:00:41]} 58...
gxh3 {[%clk 0:01:06.3]} 59. Kg1 {[%clk 0:00:42.7]} 59... Rg2+ {[%clk 0:01:07.2]}
60. Kh1 {[%clk 0:00:43.4]} 60... Re2 {[%clk 0:01:03.9]} 61. Rb1 {[%clk
0:00:44.4]} 61... Kxe3 {[%clk 0:01:01.7]} 62. Kg1 {[%clk 0:00:36]} 62... Ke4
{[%clk 0:00:49]} 63. Rb3 {[%clk 0:00:27.5]} 63... Re3 {[%clk 0:00:49]} 64. Rb2
{[%clk 0:00:28.5]} 64... f4 {[%clk 0:00:47.5]} 65. Kf2 {[%clk 0:00:29.3]} 65...
Rf3+ {[%clk 0:00:47.6]} 66. Ke2 {[%clk 0:00:29.9]} 66... Rc3 {[%clk 0:00:48.3]}
67. Kf2 {[%clk 0:00:28.4]} 67... Kd4 {[%clk 0:00:47.8]} 68. Re2 {[%clk 0:00:26]}
68... Rb3 {[%clk 0:00:24]} 69. Re8 {[%clk 0:00:22.2]} 69... Rxb4 {[%clk
0:00:19.2]} 70. Kf3 {[%clk 0:00:23.2]} 70... Rb2 {[%clk 0:00:18.1]} 71. Kxf4
{[%clk 0:00:14.6]} 71... Rxh2 {[%clk 0:00:17.9]} 72. Kg3 {[%clk 0:00:15.7]}
72... Rd2 {[%clk 0:00:17]} 73. Kxh3 {[%clk 0:00:14.8]} 73... b4 {[%clk
0:00:18.3]} 74. Kg3 {[%clk 0:00:15]} 74... b3 {[%clk 0:00:18.4]} 75. Kf3 {[%clk
0:00:15.8]} 75... b2 {[%clk 0:00:18.7]} 76. Rb8 {[%clk 0:00:16.4]} 76... Kc3
{[%clk 0:00:18.7]} 77. Ke3 {[%clk 0:00:18.3]} 77... Rd5 {[%clk 0:00:16.1]} 78.
Rc8+ {[%clk 0:00:16]} 78... Kb3 {[%clk 0:00:16.4]} 79. Rb8+ {[%clk 0:00:16.7]}
79... Kc3 {[%clk 0:00:15.6]} 80. Rc8+ {[%clk 0:00:17]} 80... Kb4 {[%clk
0:00:16.6]} 81. Ke4 {[%clk 0:00:16.2]} 81... Rb5 {[%clk 0:00:17]} 82. Rc1 {[%clk
0:00:14.8]} 82... bxc1=Q {[%clk 0:00:16.8]} 83. Kd4 {[%clk 0:00:16.7]} 83...
Qc4+ {[%clk 0:00:16.9]} 84. Ke3 {[%clk 0:00:17.8]} 84... Ra5 {[%clk 0:00:17.5]}
85. Kd2 {[%clk 0:00:18.5]} 85... Ra2+ {[%clk 0:00:17.9]} 86. Kd1 {[%clk
0:00:20.4]} 86... Qc2+ {[%clk 0:00:17.9]} 87. Ke1 {[%clk 0:00:21.3]} 87... Qb1#
{[%clk 0:00:19.1]} 0-1

[Event "GrandPrix_30.05"]
[Site "Chess.com"]
[Date "2020.05.30"]
[Round "5"]
[White "kpio91"]
[Black "mishanick"]
[Result "1/2-1/2"]
[WhiteElo "2650"]
[BlackElo "2903"]
[TimeControl "600+2"]
[EndTime "10:30:19 PDT"]
[Termination "Game drawn by agreement"]

1. d4 {[%clk 0:10:01.9]} 1... Nf6 {[%clk 0:10:00.8]} 2. Nf3 {[%clk 0:10:02]}
2... d5 {[%clk 0:10:01.8]} 3. c4 {[%clk 0:10:02.1]} 3... e6 {[%clk 0:10:03.1]}
4. Nc3 {[%clk 0:09:55.8]} 4... dxc4 {[%clk 0:10:04.6]} 5. Qa4+ {[%clk
0:09:55.3]} 5... c6 {[%clk 0:10:05.3]} 6. Qxc4 {[%clk 0:09:56.1]} 6... b5 {[%clk
0:10:06.6]} 7. Qb3 {[%clk 0:09:57.3]} 7... a6 {[%clk 0:10:07.6]} 8. g3 {[%clk
0:09:57.8]} 8... c5 {[%clk 0:10:04.1]} 9. dxc5 {[%clk 0:09:38.2]} 9... Bb7
{[%clk 0:08:35.1]} 10. Bg2 {[%clk 0:08:43.7]} 10... Nbd7 {[%clk 0:08:33.9]} 11.
c6 {[%clk 0:08:27.6]} 11... Bxc6 {[%clk 0:08:34.1]} 12. O-O {[%clk 0:08:27.2]}
12... Be7 {[%clk 0:08:11.1]} 13. Rd1 {[%clk 0:08:04.1]} 13... Qb6 {[%clk
0:08:02.7]} 14. Be3 {[%clk 0:07:31.7]} 14... Qb7 {[%clk 0:08:03.1]} 15. h3
{[%clk 0:06:59.8]} 15... O-O {[%clk 0:08:03.4]} 16. Rac1 {[%clk 0:06:53.2]}
16... Rac8 {[%clk 0:07:23.7]} 17. a3 {[%clk 0:05:55.6]} 17... h6 {[%clk
0:07:21.5]} 18. Ne1 {[%clk 0:05:17]} 18... Bxg2 {[%clk 0:07:18.9]} 19. Nxg2
{[%clk 0:05:18.9]} 19... Ne5 {[%clk 0:07:19.4]} 20. a4 {[%clk 0:05:04.1]} 20...
b4 {[%clk 0:07:11.5]} 21. Nb1 {[%clk 0:05:04.2]} 21... Nd5 {[%clk 0:07:07]} 22.
Nd2 {[%clk 0:04:52.2]} 22... Rfd8 {[%clk 0:06:29.2]} 23. Rxc8 {[%clk 0:04:12.8]}
23... Rxc8 {[%clk 0:06:29.2]} 24. Bd4 {[%clk 0:04:13.4]} 24... Nc6 {[%clk
0:06:26.1]} 25. Nc4 {[%clk 0:04:11.9]} 25... Qc7 {[%clk 0:05:34.4]} 26. Nge3
{[%clk 0:03:49.1]} 26... Nxd4 {[%clk 0:04:08.9]} 27. Rxd4 {[%clk 0:03:47.7]}
27... Bf6 {[%clk 0:04:02]} 28. Rd1 {[%clk 0:03:26.7]} 28... Qc5 {[%clk
0:04:01.6]} 29. Nxd5 {[%clk 0:02:55.8]} 29... exd5 {[%clk 0:04:02]} 30. Ne3
{[%clk 0:02:56.5]} 30... d4 {[%clk 0:02:36.3]} 31. Nd5 {[%clk 0:02:54]} 31...
Qc2 {[%clk 0:01:57.5]} 32. Qxc2 {[%clk 0:01:47.9]} 32... Rxc2 {[%clk 0:01:59.4]}
33. b3 {[%clk 0:01:06.9]} 33... a5 {[%clk 0:01:22]} 34. Nxf6+ {[%clk 0:00:40.1]}
34... gxf6 {[%clk 0:01:23.9]} 35. Kf1 {[%clk 0:00:36.3]} 35... Rb2 {[%clk
0:01:13.8]} 36. Rxd4 {[%clk 0:00:37.2]} 36... Rxb3 {[%clk 0:01:14.5]} 37. Rd5
{[%clk 0:00:38.5]} 37... Ra3 {[%clk 0:01:15.1]} 38. Rxa5 {[%clk 0:00:38.9]}
38... b3 {[%clk 0:01:15.6]} 39. Ra8+ {[%clk 0:00:31]} 39... Kg7 {[%clk 0:01:16]}
40. Rb8 {[%clk 0:00:32.2]} 40... b2 {[%clk 0:01:16.8]} 41. Rxb2 {[%clk
0:00:32.2]} 41... Rxa4 {[%clk 0:01:17.8]} 42. Kg2 {[%clk 0:00:31.6]} 42... Ra5
{[%clk 0:01:18.8]} 43. Rb4 {[%clk 0:00:32.5]} 43... Rc5 {[%clk 0:01:20]} 44. h4
{[%clk 0:00:33.3]} 44... Ra5 {[%clk 0:01:20.2]} 45. Rb6 {[%clk 0:00:33.9]} 45...
Rc5 {[%clk 0:01:21.3]} 46. Ra6 {[%clk 0:00:34.9]} 46... Rb5 {[%clk 0:01:22.1]}
47. Kf3 {[%clk 0:00:34.7]} 47... Rc5 {[%clk 0:01:23.1]} 48. Kf4 {[%clk
0:00:33.3]} 48... Rc2 {[%clk 0:01:22.9]} 49. Kf3 {[%clk 0:00:33.2]} 49... Rc5
{[%clk 0:01:24]} 50. e3 {[%clk 0:00:28.7]} 50... Rf5+ {[%clk 0:01:24.9]} 51. Kg2
{[%clk 0:00:28.7]} 51... Rb5 {[%clk 0:01:26.8]} 52. Ra4 {[%clk 0:00:27.9]} 52...
Rc5 {[%clk 0:01:27.7]} 53. Rb4 {[%clk 0:00:28.8]} 53... Ra5 {[%clk 0:01:28.2]}
54. Rg4+ {[%clk 0:00:29.7]} 54... Kf8 {[%clk 0:01:28.5]} 55. Rf4 {[%clk
0:00:31.6]} 55... Kg7 {[%clk 0:01:29]} 56. Kh3 {[%clk 0:00:31.4]} 56... Rb5
{[%clk 0:01:29.8]} 57. Kg4 {[%clk 0:00:32.1]} 57... Ra5 {[%clk 0:01:29.7]} 58.
Rd4 {[%clk 0:00:30.9]} 58... Ra2 {[%clk 0:01:28.9]} 59. f3 {[%clk 0:00:29.3]}
59... Ra3 {[%clk 0:01:29.1]} 60. Kf4 {[%clk 0:00:27.8]} 60... Ra5 {[%clk
0:01:29.9]} 61. e4 {[%clk 0:00:27.9]} 61... Rb5 {[%clk 0:01:24.6]} 62. Rd5
{[%clk 0:00:28.5]} 62... Rb3 {[%clk 0:01:25.5]} 63. Rd7 {[%clk 0:00:28.7]} 63...
Ra3 {[%clk 0:01:25.7]} 64. Rb7 {[%clk 0:00:29.5]} 64... Rc3 {[%clk 0:01:26.4]}
65. Rb1 {[%clk 0:00:30]} 65... Ra3 {[%clk 0:01:26.5]} 66. Re1 {[%clk 0:00:30.8]}
66... Rb3 {[%clk 0:01:26.9]} 67. Re3 {[%clk 0:00:32.4]} 67... Rb4 {[%clk
0:01:27.5]} 68. Rd3 {[%clk 0:00:31.2]} 68... Ra4 {[%clk 0:01:28.3]} 69. g4
{[%clk 0:00:29.1]} 69... Rb4 {[%clk 0:01:28.7]} 70. Rd5 {[%clk 0:00:28.3]} 70...
Rb3 {[%clk 0:01:28.6]} 71. Ra5 {[%clk 0:00:21.1]} 71... Rc3 {[%clk 0:01:27.7]}
72. Ra2 {[%clk 0:00:21.8]} 72... Rb3 {[%clk 0:01:27.1]} 73. Re2 {[%clk
0:00:21.5]} 73... Kg6 {[%clk 0:01:28]} 74. Re3 {[%clk 0:00:21.8]} 74... Rb4
{[%clk 0:01:28.7]} 75. Rd3 {[%clk 0:00:22.6]} 75... Kg7 {[%clk 0:01:29.6]} 76.
g5 {[%clk 0:00:19.5]} 76... hxg5+ {[%clk 0:01:29.9]} 77. hxg5 {[%clk 0:00:20.6]}
77... fxg5+ {[%clk 0:01:31.6]} 78. Kxg5 {[%clk 0:00:21.9]} 78... Rb5+ {[%clk
0:01:32.7]} 79. Rd5 {[%clk 0:00:22.7]} 79... Rb6 {[%clk 0:01:19.9]} 80. f4
{[%clk 0:00:18]} 80... Rg6+ {[%clk 0:01:20.8]} 81. Kf5 {[%clk 0:00:19.2]} 81...
Rf6+ {[%clk 0:01:22]} 82. Ke5 {[%clk 0:00:18]} 82... Re6+ {[%clk 0:01:22.5]} 83.
Kd4 {[%clk 0:00:19.2]} 83... Ra6 {[%clk 0:01:23.4]} 84. Rg5+ {[%clk 0:00:18.7]}
84... Kf6 {[%clk 0:01:22.5]} 85. Rf5+ {[%clk 0:00:16.1]} 85... Ke6 {[%clk
0:01:22.3]} 86. Rc5 {[%clk 0:00:12.6]} 86... Ra4+ {[%clk 0:01:16.6]} 87. Rc4
{[%clk 0:00:13.3]} 87... Ra6 {[%clk 0:01:17.6]} 88. Rc5 {[%clk 0:00:05.1]} 88...
Ra4+ {[%clk 0:01:18.1]} 89. Ke3 {[%clk 0:00:06.4]} 89... Ra3+ {[%clk 0:01:19.3]}
90. Ke2 {[%clk 0:00:06]} 90... Rb3 {[%clk 0:01:01.4]} 91. Re5+ {[%clk
0:00:05.8]} 91... Kf6 {[%clk 0:01:01.4]} 92. Rf5+ {[%clk 0:00:07]} 92... Ke6
{[%clk 0:01:02.5]} 93. Re5+ {[%clk 0:00:08.3]} 93... Kf6 {[%clk 0:01:03.8]} 94.
Rd5 {[%clk 0:00:09.9]} 94... Ke6 {[%clk 0:01:04.2]} 95. Rd3 {[%clk 0:00:10.6]}
95... Rb4 {[%clk 0:01:05.1]} 96. Kf2 {[%clk 0:00:11.6]} 96... Rxe4 {[%clk
0:01:04]} 1/2-1/2

[Event "GrandPrix_30.05"]
[Site "Chess.com"]
[Date "2020.05.30"]
[Round "5"]
[White "caspiwins"]
[Black "Flawless_Fighter"]
[Result "1-0"]
[WhiteElo "2277"]
[BlackElo "2137"]
[TimeControl "600+2"]
[EndTime "10:31:21 PDT"]
[Termination "caspiwins won by resignation"]

1. e4 {[%clk 0:10:01.9]} 1... e5 {[%clk 0:09:59.9]} 2. Nf3 {[%clk 0:10:00.7]}
2... Nc6 {[%clk 0:10:01.2]} 3. d4 {[%clk 0:10:01.8]} 3... exd4 {[%clk 0:09:49]}
4. Nxd4 {[%clk 0:10:03.7]} 4... Bb4+ {[%clk 0:09:50.4]} 5. c3 {[%clk 0:10:03]}
5... Bc5 {[%clk 0:09:49.8]} 6. Be3 {[%clk 0:10:00.6]} 6... Bb6 {[%clk 0:09:51]}
7. Nf5 {[%clk 0:10:00.4]} 7... g6 {[%clk 0:09:51.2]} 8. Bxb6 {[%clk 0:10:00.3]}
8... axb6 {[%clk 0:09:52.7]} 9. Ne3 {[%clk 0:10:00.8]} 9... Nf6 {[%clk
0:09:48.5]} 10. f3 {[%clk 0:10:01.9]} 10... Qe7 {[%clk 0:09:48.9]} 11. c4 {[%clk
0:10:02.6]} 11... Qb4+ {[%clk 0:09:41.9]} 12. Qd2 {[%clk 0:10:02.8]} 12... Qxd2+
{[%clk 0:09:41.9]} 13. Kxd2 {[%clk 0:10:02.9]} 13... d6 {[%clk 0:09:33.2]} 14.
Nc3 {[%clk 0:10:03.8]} 14... Be6 {[%clk 0:09:29.3]} 15. Be2 {[%clk 0:10:02.4]}
15... Kd8 {[%clk 0:08:49.3]} 16. Rhd1 {[%clk 0:09:57.8]} 16... Nd7 {[%clk
0:08:49.2]} 17. a3 {[%clk 0:09:56.8]} 17... Nd4 {[%clk 0:08:29.9]} 18. Kd3
{[%clk 0:09:28.7]} 18... Ne5+ {[%clk 0:08:12.9]} 19. Kd2 {[%clk 0:09:21.7]}
19... Nb3+ {[%clk 0:08:13.2]} 20. Kc2 {[%clk 0:09:21.1]} 20... Nxa1+ {[%clk
0:08:14.8]} 21. Rxa1 {[%clk 0:09:23]} 21... c6 {[%clk 0:08:12.3]} 22. f4 {[%clk
0:09:19.3]} 22... Nd7 {[%clk 0:07:17.7]} 23. f5 {[%clk 0:09:18.8]} 23... Ne5
{[%clk 0:07:05.5]} 24. fxe6 {[%clk 0:09:18.3]} 24... fxe6 {[%clk 0:07:07.4]} 25.
Ng4 {[%clk 0:09:11.3]} 25... Nd7 {[%clk 0:06:47.2]} 26. Rd1 {[%clk 0:08:59.5]}
26... Ke7 {[%clk 0:06:47.5]} 27. e5 {[%clk 0:08:54.8]} 27... d5 {[%clk
0:06:28.8]} 28. cxd5 {[%clk 0:08:54.8]} 28... exd5 {[%clk 0:06:27.6]} 29. Re1
{[%clk 0:08:52.3]} 29... Raf8 {[%clk 0:06:08.2]} 30. Bf3 {[%clk 0:08:52.1]}
30... h5 {[%clk 0:06:05.5]} 31. Nf2 {[%clk 0:08:52.3]} 31... Ke6 {[%clk
0:05:39.6]} 32. Nd3 {[%clk 0:08:49.6]} 32... g5 {[%clk 0:05:38.5]} 33. h3 {[%clk
0:08:48.7]} 33... Rfg8 {[%clk 0:04:59.4]} 34. Ne2 {[%clk 0:08:43]} 34... g4
{[%clk 0:04:42.8]} 35. Nef4+ {[%clk 0:08:20.1]} 35... Ke7 {[%clk 0:04:42.2]} 36.
Bd1 {[%clk 0:08:14]} 36... Rh6 {[%clk 0:04:20.6]} 37. h4 {[%clk 0:08:14.2]}
37... Rf8 {[%clk 0:03:53.7]} 38. g3 {[%clk 0:08:14.8]} 38... Rf5 {[%clk
0:03:52.7]} 39. b4 {[%clk 0:08:10.1]} 39... Nf8 {[%clk 0:03:42.4]} 40. Kc3
{[%clk 0:08:01.1]} 40... Ne6 {[%clk 0:03:28.1]} 41. Nxe6 {[%clk 0:08:00.7]}
41... Rxe6 {[%clk 0:03:28.3]} 42. Nf4 {[%clk 0:07:40.2]} 42... Rh6 {[%clk
0:03:13.3]} 43. Bc2 {[%clk 0:07:40.2]} 43... Rf7 {[%clk 0:03:10.3]} 44. Kd4
{[%clk 0:07:36.2]} 44... Rg7 {[%clk 0:02:54.2]} 45. Bf5 {[%clk 0:07:21.1]} 45...
Rg8 {[%clk 0:02:53.8]} 46. Re3 {[%clk 0:07:16.3]} 46... Ra8 {[%clk 0:02:52.3]}
47. Bc2 {[%clk 0:07:07.6]} 47... Rg8 {[%clk 0:02:50.9]} 48. e6 {[%clk
0:07:01.3]} 48... Kd6 {[%clk 0:02:47.6]} 49. e7 {[%clk 0:06:51]} 49... c5+
{[%clk 0:02:47.7]} 50. Kd3 {[%clk 0:06:44.3]} 50... Re8 {[%clk 0:02:47.3]} 51.
Ba4 {[%clk 0:06:40.5]} 51... Rxe7 {[%clk 0:02:40.7]} 52. Rxe7 {[%clk 0:06:41.2]}
52... Kxe7 {[%clk 0:02:40.3]} 53. Nxd5+ {[%clk 0:06:42.6]} 53... Kd6 {[%clk
0:02:19.9]} 54. Nxb6 {[%clk 0:06:23.8]} 54... cxb4 {[%clk 0:02:20.4]} 55. axb4
{[%clk 0:06:24.3]} 55... Rf6 {[%clk 0:02:20.5]} 56. Nc4+ {[%clk 0:06:23.3]}
56... Kd5 {[%clk 0:02:18.8]} 57. Ne3+ {[%clk 0:06:15.5]} 57... Ke5 {[%clk
0:02:20]} 58. Be8 {[%clk 0:06:11.2]} 58... Rf3 {[%clk 0:02:04.8]} 59. Bxh5
{[%clk 0:06:10.8]} 59... Rxg3 {[%clk 0:02:05.7]} 60. Ke2 {[%clk 0:06:10.5]}
60... Kf4 {[%clk 0:02:01.2]} 61. Nxg4 {[%clk 0:06:05.8]} 61... Rb3 {[%clk
0:01:03.4]} 62. Nf2 {[%clk 0:06:01.9]} 62... Rb2+ {[%clk 0:00:45.1]} 63. Ke1
{[%clk 0:06:02.4]} 63... Kg3 {[%clk 0:00:45.1]} 64. Nd3 {[%clk 0:06:01.4]} 64...
Rb1+ {[%clk 0:00:32.1]} 65. Kd2 {[%clk 0:06:01.1]} 65... Kxh4 {[%clk 0:00:33.7]}
66. Bf3 {[%clk 0:06:02]} 66... b6 {[%clk 0:00:33.9]} 67. Bd5 {[%clk 0:05:25.3]}
67... Kg5 {[%clk 0:00:32.7]} 68. Kc3 {[%clk 0:05:24.5]} 68... Kf6 {[%clk
0:00:31.8]} 69. Kc4 {[%clk 0:05:25.2]} 69... Ke7 {[%clk 0:00:25.5]} 70. Kb5
{[%clk 0:05:25.3]} 70... Kd6 {[%clk 0:00:27]} 71. Bc4 {[%clk 0:05:22.8]} 71...
Kc7 {[%clk 0:00:23.8]} 72. Nf4 {[%clk 0:05:23.4]} 72... Kb7 {[%clk 0:00:10.1]}
73. Nd5 {[%clk 0:05:19]} 73... Rb2 {[%clk 0:00:11.1]} 74. Bd3 {[%clk 0:05:19]}
74... Rb3 {[%clk 0:00:05.7]} 75. Be4 {[%clk 0:05:17.2]} 75... Ka7 {[%clk
0:00:06.9]} 76. Ne7 {[%clk 0:05:15.5]} 76... Re3 {[%clk 0:00:05.1]} 77. Nc6+
{[%clk 0:05:09.6]} 77... Kb7 {[%clk 0:00:06.6]} 78. Bd5 {[%clk 0:05:09.9]} 78...
Kc7 {[%clk 0:00:07.8]} 79. Nd4 {[%clk 0:05:02.5]} 79... Rd3 {[%clk 0:00:06.5]}
80. Kc4 {[%clk 0:04:58.3]} 80... Rd1 {[%clk 0:00:04.9]} 81. Bf3 {[%clk
0:04:58.7]} 81... Rc1+ {[%clk 0:00:04.7]} 82. Kb5 {[%clk 0:04:59]} 82... Rc3
{[%clk 0:00:03.2]} 83. Be4 {[%clk 0:04:43.7]} 83... Re3 {[%clk 0:00:04.1]} 84.
Bc2 {[%clk 0:04:29.8]} 84... Rc3 {[%clk 0:00:04.6]} 85. Bb3 {[%clk 0:04:22.1]}
85... Kb7 {[%clk 0:00:04.5]} 86. Bd5+ {[%clk 0:04:15.2]} 86... Kc7 {[%clk
0:00:05.8]} 87. Bc4 {[%clk 0:04:14.7]} 87... Kb7 {[%clk 0:00:06]} 88. Ne6 {[%clk
0:04:10.6]} 88... Rc1 {[%clk 0:00:04.4]} 89. Bd5+ {[%clk 0:04:06.8]} 89... Ka7
{[%clk 0:00:05.9]} 90. Bc4 {[%clk 0:03:43.6]} 90... Kb7 {[%clk 0:00:04.3]} 91.
Nf4 {[%clk 0:03:43.2]} 91... Ka7 {[%clk 0:00:03.2]} 92. Nd5 {[%clk 0:03:43.7]}
92... Rb1 {[%clk 0:00:04.8]} 93. Kc6 {[%clk 0:03:40]} 93... Rc1 {[%clk
0:00:05.2]} 94. Kb5 {[%clk 0:03:40.1]} 94... Rb1 {[%clk 0:00:06.7]} 95. Nc3
{[%clk 0:03:38.9]} 95... Rb2 {[%clk 0:00:05.8]} 96. Na4 {[%clk 0:03:37.3]} 96...
Rb1 {[%clk 0:00:06.1]} 97. Ba2 {[%clk 0:03:36.4]} 97... Ra1 {[%clk 0:00:06.5]}
98. Bd5 {[%clk 0:03:37.4]} 98... Rb1 {[%clk 0:00:06.5]} 99. Be4 {[%clk
0:03:38.4]} 99... Re1 {[%clk 0:00:06.7]} 100. Nc3 {[%clk 0:03:32.9]} 100... Re3
{[%clk 0:00:06.2]} 101. Kc4 {[%clk 0:03:34]} 101... Re1 {[%clk 0:00:06]} 102.
Bc6 {[%clk 0:03:29.6]} 102... Rc1 {[%clk 0:00:06.8]} 103. Kb3 {[%clk 0:03:06.7]}
103... Re1 {[%clk 0:00:08.1]} 104. Bd5 {[%clk 0:03:02.8]} 104... Rc1 {[%clk
0:00:07.4]} 105. Ne2 {[%clk 0:02:56.7]} 105... Re1 {[%clk 0:00:07.5]} 106. Nd4
{[%clk 0:02:55.9]} 106... Rd1 {[%clk 0:00:08.8]} 107. Kc4 {[%clk 0:02:56.8]}
107... Rc1+ {[%clk 0:00:09.5]} 108. Kb5 {[%clk 0:02:57.8]} 108... Rd1 {[%clk
0:00:11.1]} 109. Nc6+ {[%clk 0:02:57.4]} 109... Kb7 {[%clk 0:00:12.6]} 110. Bf3
{[%clk 0:02:45.9]} 110... Rf1 {[%clk 0:00:11.1]} 111. Nd4+ {[%clk 0:02:42.2]}
111... Ka7 {[%clk 0:00:12.2]} 112. Kc6 {[%clk 0:02:38.8]} 112... Rc1+ {[%clk
0:00:10.8]} 113. Kd6 {[%clk 0:02:38.4]} 113... Rb1 {[%clk 0:00:08.4]} 114. Be4
{[%clk 0:02:34.1]} 114... Rd1 {[%clk 0:00:07.6]} 115. Ke5 {[%clk 0:02:32.4]}
115... Re1 {[%clk 0:00:08.4]} 116. b5 {[%clk 0:02:33.2]} 116... Re3 {[%clk
0:00:05.8]} 117. Kd5 {[%clk 0:02:31.1]} 117... Kb7 {[%clk 0:00:05.3]} 118. Bf3
{[%clk 0:02:31.7]} 118... Re1 {[%clk 0:00:03.9]} 119. Kd6+ {[%clk 0:02:32.3]}
119... Ka7 {[%clk 0:00:05]} 120. Kc7 {[%clk 0:02:31.4]} 120... Re7+ {[%clk
0:00:05.9]} 121. Kd8 {[%clk 0:02:27.2]} 121... Rf7 {[%clk 0:00:06]} 122. Nc6+
{[%clk 0:02:25]} 122... Ka8 {[%clk 0:00:06]} 123. Ne5+ {[%clk 0:02:25.3]} 123...
Rxf3 {[%clk 0:00:03.3]} 124. Nxf3 {[%clk 0:02:26.1]} 124... Kb7 {[%clk
0:00:04.9]} 125. Kd7 {[%clk 0:02:27.1]} 125... Kb8 {[%clk 0:00:06]} 126. Kc6
{[%clk 0:02:27.9]} 126... Ka7 {[%clk 0:00:07.7]} 127. Kc7 {[%clk 0:02:29.1]}
127... Ka8 {[%clk 0:00:08.4]} 128. Kxb6 {[%clk 0:02:30.2]} 128... Kb8 {[%clk
0:00:10.3]} 129. Ka6 {[%clk 0:02:30.1]} 129... Ka8 {[%clk 0:00:11.2]} 130. b6
{[%clk 0:02:31.2]} 130... Kb8 {[%clk 0:00:12.8]} 131. b7 {[%clk 0:02:32.2]} 1-0

[Event "GrandPrix_30.05"]
[Site "Chess.com"]
[Date "2020.05.30"]
[Round "6"]
[White "mishanick"]
[Black "BogdanDeac"]
[Result "1/2-1/2"]
[WhiteElo "2868"]
[BlackElo "2577"]
[TimeControl "600+2"]
[EndTime "10:37:12 PDT"]
[Termination "Game drawn by agreement"]

1. d4 {[%clk 0:09:48.5]} 1... Nf6 {[%clk 0:10:01]} 2. c4 {[%clk 0:09:47.8]} 2...
e6 {[%clk 0:10:02.5]} 3. Nf3 {[%clk 0:09:49.5]} 3... d5 {[%clk 0:10:03.4]} 4.
Nc3 {[%clk 0:09:50.9]} 4... c6 {[%clk 0:10:05]} 5. Bg5 {[%clk 0:09:50.9]} 5...
h6 {[%clk 0:10:05.7]} 6. Bh4 {[%clk 0:09:29.8]} 6... dxc4 {[%clk 0:10:06.4]} 7.
e4 {[%clk 0:09:31.3]} 7... g5 {[%clk 0:10:08]} 8. Bg3 {[%clk 0:09:32.8]} 8... b5
{[%clk 0:10:09.6]} 9. h4 {[%clk 0:09:34.4]} 9... g4 {[%clk 0:10:08.2]} 10. Ne5
{[%clk 0:09:35.8]} 10... Nbd7 {[%clk 0:10:09.8]} 11. Nxc6 {[%clk 0:09:36.5]}
11... Qb6 {[%clk 0:10:09.6]} 12. d5 {[%clk 0:09:38]} 12... Bb7 {[%clk 0:10:09]}
13. a4 {[%clk 0:09:39.2]} 13... a6 {[%clk 0:10:10.1]} 14. Be2 {[%clk 0:09:40.4]}
14... Bxc6 {[%clk 0:10:11.2]} 15. dxc6 {[%clk 0:09:41.5]} 15... Qxc6 {[%clk
0:10:12.7]} 16. axb5 {[%clk 0:09:42.8]} 16... axb5 {[%clk 0:10:14.6]} 17. Rxa8+
{[%clk 0:09:43.7]} 17... Qxa8 {[%clk 0:10:16.5]} 18. O-O {[%clk 0:09:44.7]}
18... Nxe4 {[%clk 0:09:19.5]} 19. Nxe4 {[%clk 0:09:45]} 19... Qxe4 {[%clk
0:09:21]} 20. Bxg4 {[%clk 0:09:46]} 20... Ne5 {[%clk 0:09:17]} 21. Bxe6 {[%clk
0:09:45.5]} 21... fxe6 {[%clk 0:09:18.6]} 22. Re1 {[%clk 0:09:46.5]} 22... Qg4
{[%clk 0:09:18.3]} 23. Bxe5 {[%clk 0:09:43.4]} 1/2-1/2